bitfinex/quotes_SOLUSD_20250922
["timestamp","ask_amount","ask_price","bid_price","bid_amount"]
[1758523449702,0.68,225.36,225.34,37.5]
[1758523449881,31.2,225.38,225.34,37.5]
[1758523450487,5.1163604,225.41,225.35,0.66]
[1758523450689,4.4363604,225.41,225.35,0.66]
[1758523451210,31.2,225.39,225.35,0.66]
[1758523451699,0.67,225.42,225.34,41.93773217]
[1758523451892,4.28834101,225.42,225.34,42.65773217]
[1758523452101,4.28834101,225.42,225.34,38.22]
[1758523452805,4.28834101,225.42,225.34,0.72]
[1758523453011,4.28834101,225.42,225.35,37.48]
[1758523453488,8.72451763,225.42,225.35,37.48]
[1758523453911,3.61834101,225.4,225.36,37.46]
[1758523454203,3.61834101,225.4,225.34,0.72]
[1758523454407,16.19658563,225.42,225.31,26.67]
[1758523454408,3.61834101,225.38,225.31,26.67]
[1758523454715,3.61834101,225.36,225.32,37.46]
[1758523455010,3.61834101,225.36,225.32,38.18]
[1758523455217,8.05570481,225.36,225.32,38.18]
[1758523455504,8.05570481,225.36,225.33,37.46]
[1758523455695,8.05570481,225.36,225.34,37.46]
[1758523455897,8.05570481,225.36,225.32,0.72]
[1758523456098,39.25570481,225.36,225.35,37.46]
[1758523456302,31.2,225.36,225.35,37.46]
[1758523456699,34.81834101,225.36,225.35,37.46]
[1758523457009,31.2,225.36,225.35,37.46]
[1758523458512,39.25558873,225.37,225.35,37.46]
[1758523458814,3.61834101,225.36,225.35,37.46]
[1758523459197,39.92558873,225.37,225.35,37.46]
[1758523459395,31.2,225.37,225.35,37.46]
[1758523459598,4.43681773,225.39,225.35,37.46]
[1758523459803,8.05515874,225.39,225.35,37.46]
[1758523460194,3.61834101,225.38,225.35,37.46]
[1758523460399,4.43681773,225.39,225.35,38.18]
[1758523460601,34.81834101,225.4,225.39,129.96318227]
[1758523460811,34.81834101,225.4,225.39,210.56318227]
[1758523461818,34.81834101,225.4,225.39,247.98318227]
[1758523461819,39.25489824,225.4,225.39,247.98318227]
[1758523462509,31.2,225.4,225.39,247.98318227]
[1758523462719,3.61834101,225.4,225.39,247.98318227]
[1758523463319,39.25489824,225.4,225.39,247.98318227]
[1758523464118,51.01629131,225.4,225.39,37.42]
[1758523464413,51.01629131,225.4,225.35,210.56318227]
[1758523464414,19.81629131,225.4,225.32,80.6]
[1758523464617,31.2,225.37,225.33,37.4]
[1758523464808,0.67,225.36,225.33,37.4]
[1758523465108,4.43773852,225.34,225.33,37.4]
[1758523465295,4.43773852,225.34,225.33,80.6]
[1758523465721,19.15042585,225.34,225.32,37.4]
[1758523465897,8.05607953,225.34,225.32,118.0]
[1758523466097,3.61834101,225.33,225.32,118.0]
[1758523466518,31.2,225.31,225.26,80.6]
[1758523466715,3.61834101,225.27,225.24,80.6]
[1758523466902,3.61834101,225.25,225.24,118.0]
[1758523467206,8.05785266,225.25,225.24,118.0]
[1758523467905,8.05785266,225.25,225.24,80.6]
[1758523468303,5.14675407,225.39,225.24,27.36]
[1758523468498,3.61834101,225.35,225.25,0.68]
[1758523468717,3.61834101,225.32,225.26,37.38]
[1758523468909,0.71,225.31,225.26,37.38]
[1758523469109,0.71,225.3,225.26,37.38]
[1758523469613,31.2,225.28,225.26,37.38]
[1758523470998,4.4391175,225.27,225.26,37.38]
[1758523471421,15.53691125,225.27,225.21,0.68]
[1758523471621,31.2,225.26,225.2,37.38]
[1758523471923,31.2,225.26,225.21,0.68]
[1758523472123,15.53691125,225.27,225.22,0.68]
[1758523472324,15.53691125,225.27,225.23,0.68]
[1758523472802,15.53691125,225.27,225.19,37.38]
[1758523473003,15.53691125,225.27,225.2,0.68]
[1758523474115,15.53691125,225.27,225.2,211.24318227]
[1758523474621,4.43884829,225.29,225.21,0.68]
[1758523474820,35.63884829,225.29,225.21,0.68]
[1758523475222,35.63884829,225.29,225.21,81.28]
[1758523475428,4.43884829,225.29,225.22,0.68]
[1758523475716,4.43884829,225.29,225.23,37.36]
[1758523475921,15.53565684,225.29,225.24,0.68]
[1758523476120,15.53565684,225.29,225.23,37.36]
[1758523476308,2.31396369,225.27,225.24,37.36]
[1758523476506,15.53565684,225.29,225.24,37.36]
[1758523476712,2.31396369,225.27,225.21,81.28]
[1758523476921,2.31396369,225.23,225.22,37.36]
[1758523477314,14.497003,225.25,225.22,37.36]
[1758523477520,2.31396369,225.24,225.22,37.36]
[1758523477709,2.31396369,225.23,225.22,37.36]
[1758523477904,2.31396369,225.23,225.13,80.6]
[1758523478104,2.31396369,225.19,225.15,37.36]
[1758523478309,0.71,225.22,225.15,37.36]
[1758523478310,2.31396369,225.17,225.15,37.36]
[1758523478927,2.31396369,225.17,225.14,108.44516777]
[1758523478928,3.02396369,225.17,225.14,108.44516777]
[1758523479130,2.31396369,225.15,225.14,37.34]
[1758523479431,2.31396369,225.18,225.14,38.02]
[1758523480311,2.31396369,225.16,225.14,37.34]
[1758523480805,2.31396369,225.17,225.14,38.02]
[1758523481612,4.44067985,225.2,225.15,0.68]
[1758523481820,4.44067985,225.2,225.16,0.68]
[1758523482020,4.43987903,225.24,225.17,0.68]
[1758523482335,4.4394209,225.26,225.17,38.02]
[1758523482642,2.31396369,225.26,225.18,0.68]
[1758523483325,4.43951165,225.25,225.18,5.12084119]
[1758523483527,2.31396369,225.29,225.19,0.68]
[1758523483820,3.02396369,225.29,225.19,0.68]
[1758523484019,0.71,225.36,225.19,0.68]
[1758523484215,2.31396369,225.34,225.21,31.2]
[1758523484416,2.31396369,225.34,225.22,38.02]
[1758523484625,6.02408023,225.34,225.22,38.02]
[1758523484816,6.02408023,225.34,225.23,0.68]
[1758523485131,4.43793547,225.33,225.24,4.43970875]
[1758523485335,4.43793547,225.33,225.25,0.68]
[1758523485633,4.43793547,225.33,225.26,37.32]
[1758523485834,4.43767506,225.35,225.27,0.68]
[1758523486422,6.02408023,225.34,225.27,0.68]
[1758523486619,6.02408023,225.32,225.28,37.32]
[1758523487739,0.71,225.31,225.29,37.32]
[1758523488234,6.02408023,225.3,225.29,37.32]
[1758523489135,0.71,225.33,225.29,37.32]
[1758523489357,31.2,225.27,225.13,0.68]
[1758523489518,6.02408023,225.16,225.12,0.2]
[1758523489832,6.02408023,225.14,225.12,0.2]
[1758523490013,6.73408023,225.14,225.12,0.2]
[1758523490215,6.02408023,225.14,225.12,0.2]
[1758523490536,6.02408023,225.19,225.13,0.68]
[1758523491327,6.02408023,225.21,225.13,0.68]
[1758523491526,5.15026837,225.22,225.14,26.68]
[1758523491721,6.02408023,225.21,225.13,5.12168949]
[1758523492122,11.1743486,225.22,225.13,5.12168949]
[1758523493237,13.35678191,225.33,225.14,27.36]
[1758523493444,0.71,225.38,225.2,57.88]
[1758523493644,0.71,225.38,225.24,31.2]
[1758523493820,6.73408023,225.38,225.25,38.46]
[1758523494033,6.73408023,225.38,225.26,0.68]
[1758523494324,6.02408023,225.36,225.27,37.84]
[1758523494533,0.71,225.36,225.27,37.84]
[1758523494724,11.17152878,225.36,225.28,4.43892045]
[1758523494923,11.17152878,225.36,225.26,5.11921077]
[1758523495128,0.71,225.41,225.27,38.5]
[1758523495328,6.02408023,225.36,225.28,37.8]
[1758523495528,6.02408023,225.36,225.27,0.68]
[1758523495939,6.02408023,225.37,225.28,37.78]
[1758523496131,6.02408023,225.37,225.29,0.68]
[1758523496443,6.02408023,225.37,225.3,37.76]
[1758523496831,4.43734469,225.36,225.3,37.76]
[1758523497449,6.02408023,225.35,225.29,0.68]
[1758523497627,6.02408023,225.35,225.3,37.72]
[1758523497828,4.43734469,225.36,225.3,37.72]
[1758523498043,6.02408023,225.35,225.31,37.72]
[1758523498350,6.02408023,225.35,225.32,37.72]
[1758523498553,6.02408023,225.35,225.33,37.7]
[1758523498724,11.16167501,225.35,225.33,37.7]
[1758523498929,11.16167501,225.35,225.29,0.68]
[1758523499338,11.16167501,225.35,225.3,37.68]
[1758523499647,0.7,225.35,225.3,37.68]
[1758523499849,6.72408023,225.35,225.3,37.68]
[1758523500246,6.02408023,225.35,225.3,37.68]
[1758523500434,6.02408023,225.36,225.3,37.68]
[1758523500950,6.02408023,225.36,225.3,42.11845838]
[1758523501253,6.02408023,225.36,225.3,37.68]
[1758523501458,6.02408023,225.33,225.31,37.62]
[1758523501638,6.02408023,225.35,225.31,37.62]
[1758523502154,6.02408023,225.35,225.28,0.67]
[1758523502339,6.02408023,225.35,225.32,37.68]
[1758523502538,6.02408023,225.34,225.32,37.66]
[1758523502839,11.16198123,225.34,225.26,0.67]
[1758523503043,6.02408023,225.35,225.26,5.10927551]
[1758523503240,6.02408023,225.33,225.27,37.62]
[1758523503751,6.02408023,225.33,225.26,0.67]
[1758523503946,6.02408023,225.3,225.24,13.23942307]
[1758523504150,6.02408023,225.29,225.23,0.67]
[1758523504463,6.02408023,225.25,225.16,0.67]
[1758523504631,31.2,225.22,225.16,0.67]
[1758523504835,31.2,225.22,225.13,0.67]
[1758523504836,6.02408023,225.19,225.13,0.67]
[1758523505037,6.02408023,225.21,225.14,10.18]
[1758523505435,6.02408023,225.19,225.15,37.58]
[1758523505741,6.02408023,225.17,225.15,37.58]
[1758523505935,6.72408023,225.17,225.14,37.58]
[1758523506855,11.16518923,225.17,225.14,37.58]
[1758523507048,6.02408023,225.17,225.14,37.58]
[1758523507231,0.7,225.16,225.12,0.2]
[1758523507428,0.7,225.16,225.11,0.2]
[1758523507429,6.02408023,225.13,225.11,0.2]
[1758523507630,31.2,225.1,225.05,0.2]
[1758523507846,31.2,225.06,225.05,0.2]
[1758523508025,31.9,225.06,225.05,0.2]
[1758523508233,31.2,225.06,225.05,0.2]
[1758523508552,0.7,225.1,225.05,0.2]
[1758523509048,4.44232902,225.11,225.05,0.2]
[1758523509253,36.34232902,225.11,225.05,0.2]
[1758523509455,47.44801068,225.11,225.05,0.2]
[1758523509631,31.2,225.07,225.05,0.2]
[1758523510138,37.22408023,225.06,225.05,0.2]
[1758523510331,37.92408023,225.06,225.05,0.2]
[1758523510942,42.3673398,225.06,225.05,0.2]
[1758523511742,53.47548873,225.06,225.02,0.2]
[1758523511938,6.02408023,225.03,225.02,0.2]
[1758523512248,6.02408023,225.03,225.02,1e-08]
[1758523512455,6.70408023,225.03,225.02,1e-08]
[1758523512960,6.70408023,225.03,225.01,1e-08]
[1758523512961,4.44404941,225.02,225.01,1e-08]
[1758523513141,4.99955558,225.02,225.01,1e-08]
[1758523513326,5.67955558,225.02,225.01,1e-08]
[1758523514748,43.49955558,225.02,225.01,1e-08]
[1758523514946,4.44375154,225.04,225.01,1e-08]
[1758523515138,6.02408023,225.05,225.01,1e-08]
[1758523515656,6.70408023,225.05,225.01,1e-08]
[1758523515957,31.2,225.02,225.01,1e-08]
[1758523516544,0.55530875,225.1,225.01,0.70000001]
[1758523516854,0.68,225.16,225.02,37.74]
[1758523517041,6.02408023,225.14,225.03,38.44]
[1758523517246,0.68,225.14,225.03,38.44]
[1758523517449,0.68,225.14,225.04,0.7]
[1758523517663,31.2,225.13,225.04,0.7]
[1758523518047,31.2,225.11,225.04,0.7]
[1758523518249,15.54657308,225.13,225.04,0.7]
[1758523519164,31.2,225.1,225.04,0.7]
[1758523519854,31.2,225.1,225.01,0.70000001]
[1758523520248,31.2,225.1,225.01,5.14414701]
[1758523520568,31.2,225.1,225.02,0.7]
[1758523520950,35.64252247,225.1,225.02,0.7]
[1758523521769,31.2,225.09,225.02,0.7]
[1758523522650,35.64272757,225.09,225.02,0.7]
[1758523523474,31.2,225.08,225.02,0.7]
[1758523524181,35.6429229,225.08,225.02,0.7]
[1758523524770,31.2,225.08,225.02,0.7]
[1758523525071,31.2,225.08,225.02,5.14395772]
[1758523526872,4.44252308,225.1,225.02,220.14395772]
[1758523527069,31.2,225.08,225.02,220.14395772]
[1758523527373,31.2,225.08,225.03,0.65]
[1758523527565,31.2,225.14,225.03,0.65]
[1758523527762,0.67,225.16,225.03,0.65]
[1758523527957,5.11074098,225.19,225.03,215.65]
[1758523528164,5.11074098,225.19,225.05,15.55209952]
[1758523528379,31.2,225.16,225.06,0.65]
[1758523529055,5.11074098,225.19,225.07,37.42]
[1758523529261,31.2,225.16,225.07,37.42]
[1758523529464,31.2,225.16,225.08,0.65]
[1758523529657,0.67,225.15,225.09,37.4]
[1758523529862,6.02408023,225.16,225.09,37.4]
[1758523530260,4.44148345,225.15,225.09,37.4]
[1758523530471,5.11148345,225.15,225.09,37.4]
[1758523530772,6.02408023,225.1,225.01,0.65000001]
[1758523530964,6.02408023,225.08,225.02,37.4]
[1758523531158,6.02408023,225.06,225.02,37.4]
[1758523531773,6.02408023,225.06,225.02,38.05]
[1758523531966,0.67,225.1,225.03,0.65]
[1758523532271,6.69408023,225.1,225.04,4.44365446]
[1758523532466,0.67,225.13,225.05,0.65]
[1758523532655,8.73409559,225.12,225.05,0.65]
[1758523533581,31.2,225.09,225.06,37.38]
[1758523534278,31.2,225.09,225.06,41.82310829]
[1758523534571,0.67,225.17,225.07,0.65]
[1758523534760,0.67,225.17,225.08,37.38]
[1758523534761,8.73409559,225.15,225.08,37.38]
[1758523534961,9.40409559,225.15,225.08,212.44590441]
[1758523535563,9.40409559,225.15,225.08,216.88873677]
[1758523536073,13.84564284,225.15,225.08,216.88873677]
[1758523536260,8.73409559,225.13,225.09,37.38]
[1758523536462,8.73409559,225.18,225.1,0.65]
[1758523537877,13.17509183,225.18,225.11,4.44227266]
[1758523538479,13.17509183,225.18,225.1,0.65]
[1758523538677,8.73409559,225.12,225.1,175.06590441]
[1758523538893,0.67,225.12,225.11,37.38]
[1758523539067,8.73409559,225.12,225.11,37.38]
[1758523539481,8.73409559,225.13,225.11,37.38]
[1758523540176,13.84607174,225.13,225.11,37.38]
[1758523540682,0.67,225.12,225.1,40.66590441]
[1758523540882,40.60409559,225.11,225.1,40.66590441]
[1758523541088,40.60409559,225.11,225.02,4.44401694]
[1758523541381,8.73409559,225.06,225.02,175.06590441]
[1758523541579,8.73409559,225.06,225.03,37.36]
[1758523541774,13.17747189,225.06,225.04,26.68]
[1758523541979,5.11305287,225.08,225.05,37.36]
[1758523542178,8.73409559,225.06,225.02,175.06590441]
[1758523542371,8.73409559,225.04,225.02,175.06590441]
[1758523542572,8.73409559,225.04,225.03,37.36]
[1758523543173,9.40409559,225.04,225.03,37.36]
[1758523543887,9.40409559,225.04,225.01,1e-08]
[1758523543888,4.44385193,225.03,225.01,1e-08]
[1758523544071,8.73409559,225.02,225.01,1e-08]
[1758523544383,9.40409559,225.02,225.01,1e-08]
[1758523546472,0.67,225.02,225.01,1e-08]
[1758523546682,0.67,225.05,225.01,1e-08]
[1758523546878,31.2,225.02,225.01,1e-08]
[1758523547178,8.73409559,225.05,225.01,1e-08]
[1758523547384,31.2,225.02,225.01,1e-08]
[1758523547587,0.67,225.07,225.01,40.66590442]
[1758523547773,8.73409559,225.08,225.01,40.66590442]
[1758523548173,0.67,225.12,225.02,0.65]
[1758523548368,9.40409559,225.12,225.02,41.31590441]
[1758523548580,9.40409559,225.12,225.03,0.65]
[1758523548780,5.11148345,225.15,225.03,41.31590441]
[1758523548983,31.2,225.11,225.04,0.65]
[1758523549183,8.73409559,225.14,225.05,37.38]
[1758523549493,8.73409559,225.12,225.06,0.65]
[1758523549681,31.2,225.12,225.06,0.65]
[1758523549883,27.1967,225.1,225.06,0.65]
[1758523550390,0.67,225.09,225.05,37.38]
[1758523550592,8.73409559,225.07,225.03,40.66590441]
[1758523550783,8.73409559,225.04,225.02,37.38]
[1758523551590,0.67,225.09,225.03,0.65]
[1758523551775,8.73409559,225.08,225.03,0.65]
[1758523551975,13.17700307,225.08,225.03,26.68]
[1758523552183,13.84700307,225.08,225.03,26.68]
[1758523552386,13.17700307,225.08,225.03,26.68]
[1758523552589,13.17700307,225.08,225.03,27.33]
[1758523552792,31.2,225.07,225.03,27.33]
[1758523552995,13.17700307,225.08,225.03,26.68]
[1758523553188,8.73409559,225.08,225.03,26.68]
[1758523553388,13.17664125,225.1,225.04,0.65]
[1758523553691,31.2,225.07,225.04,0.65]
[1758523553899,31.2,225.09,225.05,26.68]
[1758523554100,35.64268696,225.09,225.06,37.36]
[1758523554676,9.40409559,225.08,225.06,37.36]
[1758523554877,8.73409559,225.08,225.06,37.36]
[1758523555519,9.40409559,225.08,225.06,37.36]
[1758523555699,9.40409559,225.08,225.04,212.42590441]
[1758523556194,4.44306215,225.07,225.04,212.42590441]
[1758523557399,4.44287364,225.08,225.04,212.42590441]
[1758523557575,8.73409559,225.11,225.05,0.7]
[1758523557779,13.17641183,225.11,225.05,0.7]
[1758523558195,31.2,225.08,225.05,0.7]
[1758523558394,0.55508681,225.19,225.04,26.68]
[1758523558583,8.73409559,225.08,225.04,64.04]
[1758523559493,8.73409559,225.09,225.04,64.04]
[1758523560310,13.17688576,225.09,225.04,64.04]
[1758523560482,8.73409559,225.07,225.04,40.66590441]
[1758523560687,8.73409559,225.07,225.05,37.36]
[1758523561012,9.43409559,225.07,225.05,37.36]
[1758523561605,9.43409559,225.07,225.04,40.66590441]
[1758523561807,8.73409559,225.06,225.04,40.66590441]
[1758523562408,0.7,225.05,225.01,1e-08]
[1758523562583,8.73409559,225.02,225.01,1e-08]
[1758523563095,0.7,225.02,225.01,1e-08]
[1758523563279,9.98960176,225.02,225.01,1e-08]
[1758523563886,1.25550617,225.02,225.01,1e-08]
[1758523564208,9.98960176,225.02,225.01,1e-08]
[1758523564517,14.43365117,225.02,225.01,1e-08]
[1758523565010,5.69955558,225.02,225.01,1e-08]
[1758523565188,14.43365117,225.02,225.01,1e-08]
[1758523567786,31.2,224.99,224.98,1e-08]
[1758523567986,31.2,224.99,224.95,0.2]
[1758523567987,31.2,224.97,224.95,1e-08]
[1758523568204,31.2,224.93,224.91,0.2]
[1758523568389,9.28974992,224.96,224.91,1e-08]
[1758523568390,40.48984874,224.92,224.91,1e-08]
[1758523568594,45.63587399,224.92,224.9,1e-08]
[1758523569788,82.99587399,224.92,224.9,1e-08]
[1758523569989,82.44012084,224.92,224.9,1e-08]
[1758523570192,0.7,224.91,224.9,1e-08]
[1758523570812,39.93409559,224.91,224.9,1e-08]
[1758523571508,40.63409559,224.91,224.9,1e-08]
[1758523573107,39.93409559,224.91,224.9,1e-08]
[1758523574097,31.2,224.91,224.9,1e-08]
[1758523574293,8.73409559,224.93,224.9,0.69000001]
[1758523574504,13.1795279,224.95,224.91,0.69]
[1758523575813,8.73409559,224.93,224.9,1e-08]
[1758523576205,31.2,224.94,224.9,1e-08]
[1758523576407,8.73409559,224.93,224.9,1e-08]
[1758523576718,8.73409559,224.93,224.9,0.69000001]
[1758523578115,31.2,224.95,224.91,0.69]
[1758523578415,35.64552138,224.95,224.91,0.69]
[1758523578614,31.2,224.93,224.92,0.69]
[1758523578804,31.2,224.93,224.9,1e-08]
[1758523579008,31.2,224.93,224.91,0.69]
[1758523579197,31.2,224.93,224.91,81.29]
[1758523579400,8.73409559,224.92,224.91,80.6]
[1758523579598,8.73409559,224.93,224.91,80.6]
[1758523579818,8.73409559,224.93,224.91,81.29]
[1758523580007,31.2,224.93,224.92,0.69]
[1758523580828,4.44474467,224.99,224.92,85.73595378]
[1758523581012,13.17884026,224.99,224.92,85.73595378]
[1758523581622,13.17884026,224.99,224.93,0.69]
[1758523582124,4.44474467,224.99,224.93,0.69]
[1758523582325,31.2,225.0,224.93,5.13582059]
[1758523582512,31.2,225.0,224.94,0.69]
[1758523583530,31.2,224.99,224.94,27.37]
[1758523583705,31.2,224.99,224.95,38.03]
[1758523583906,31.2,224.99,224.96,0.69]
[1758523584202,31.2,224.99,224.97,0.69]
[1758523585520,8.73409559,225.02,225.0,80.6]
[1758523585718,8.73409559,225.04,225.0,80.6]
[1758523585925,13.17787138,225.04,225.0,215.69]
[1758523586214,31.2,225.03,225.0,215.69]
[1758523586397,31.2,225.03,225.0,215.0]
[1758523587000,8.73409559,225.01,225.0,215.0]
[1758523587707,9.41409559,225.01,224.94,37.34]
[1758523587907,8.73409559,224.98,224.94,37.34]
[1758523588124,8.73409559,224.98,224.94,38.0]
[1758523588323,8.73409559,224.98,224.94,0.66]
[1758523588628,8.73409559,224.96,224.94,80.6]
[1758523588798,8.73409559,224.96,224.94,81.26]
[1758523588999,8.73409559,224.96,224.91,81.26]
[1758523589228,0.68,224.95,224.9,117.94000001]
[1758523589431,8.73409559,224.92,224.9,117.94000001]
[1758523589643,8.73409559,224.92,224.9,80.60000001]
[1758523589936,8.73409559,224.92,224.9,1e-08]
[1758523591621,31.75562963,224.97,224.91,0.66]
[1758523591940,31.2,224.97,224.92,37.32]
[1758523592122,31.2,224.97,224.93,0.66]
[1758523592319,31.2,224.99,224.92,37.32]
[1758523592530,6.04381133,224.98,224.93,0.66]
[1758523592836,10.48878214,224.98,224.93,0.66]
[1758523593338,6.04381133,224.99,224.93,27.34]
[1758523593633,10.48859433,224.99,224.93,27.34]
[1758523594439,41.68859433,224.99,224.93,27.34]
[1758523594834,35.644783,224.99,224.93,27.34]
[1758523595038,10.48882171,224.98,224.93,242.34]
[1758523595539,4.44501038,224.98,224.93,242.34]
[1758523595737,31.2,224.99,224.94,0.66]
[1758523595941,31.2,224.99,224.94,80.6]
[1758523596123,31.2,224.99,224.95,0.66]
[1758523596319,0.68,225.04,224.95,0.66]
[1758523596320,6.04381133,225.05,224.96,37.98]
[1758523596646,4.44328521,225.06,224.97,0.66]
[1758523596820,0.68,225.07,224.97,242.34]
[1758523597025,10.48667608,225.08,224.98,31.78483954]
[1758523597230,10.48667608,225.08,224.99,0.66]
[1758523597433,11.16667608,225.08,225.0,37.32]
[1758523597838,6.04381133,225.06,224.99,0.66]
[1758523598019,6.04381133,225.06,225.0,37.32]
[1758523598424,0.68,225.07,225.0,37.32]
[1758523598623,6.04381133,225.06,225.0,37.98]
[1758523598930,6.04381133,225.06,225.01,4.44424692]
[1758523599138,6.04381133,225.06,225.01,85.04424692]
[1758523599336,6.04381133,225.06,225.01,85.70424692]
[1758523599545,31.2,225.08,225.02,0.66]
[1758523600436,6.04381133,225.07,225.02,0.66]
[1758523600939,6.04381133,225.07,225.03,37.3]
[1758523601131,11.16688176,225.07,225.03,37.3]
[1758523601343,6.04381133,225.05,225.04,37.3]
[1758523601647,6.04381133,225.05,225.03,37.3]
[1758523602015,6.04381133,225.05,225.01,80.6]
[1758523602221,0.68,225.04,225.02,37.3]
[1758523602440,0.68,225.04,225.01,215.0]
[1758523602637,6.04381133,225.04,225.02,37.3]
[1758523602817,6.04381133,225.06,225.02,37.3]
[1758523603018,10.48710146,225.06,225.02,37.3]
[1758523603245,11.16710146,225.06,225.02,37.3]
[1758523603427,6.04381133,225.04,225.03,37.3]
[1758523603623,6.72381133,225.04,225.01,215.0]
[1758523603943,6.04381133,225.02,225.01,215.0]
[1758523604140,6.04381133,225.02,224.98,37.3]
[1758523604445,6.04381133,225.02,224.97,4.44503711]
[1758523604649,6.04381133,225.02,224.98,37.94]
[1758523605252,6.04381133,224.99,224.96,80.6]
[1758523605452,6.04381133,224.97,224.95,80.6]
[1758523605752,6.04381133,224.97,224.9,1e-08]
[1758523605753,1.23565433,224.96,224.9,1e-08]
[1758523605927,6.04381133,224.91,224.9,1e-08]
[1758523606248,6.04381133,224.94,224.9,0.66000001]
[1758523606455,6.04381133,224.94,224.91,0.66]
[1758523606633,6.04381133,224.94,224.92,0.66]
[1758523606832,6.04381133,224.94,224.93,37.28]
[1758523607345,6.04381133,224.95,224.93,37.28]
[1758523607849,0.68,224.94,224.9,1e-08]
[1758523608151,1.23562963,224.97,224.91,37.28]
[1758523608450,6.04381133,224.94,224.91,37.28]
[1758523609535,10.48948313,224.94,224.91,37.28]
[1758523609735,6.04381133,224.94,224.91,37.28]
[1758523611145,6.04381133,224.94,224.91,80.6]
[1758523611146,6.04381133,224.92,224.91,80.6]
[1758523611837,6.72381133,224.92,224.9,1e-08]
[1758523612038,0.68,224.91,224.9,1e-08]
[1758523612845,1.23577786,224.91,224.9,1e-08]
[1758523613234,5.68200079,224.91,224.9,1e-08]
[1758523613551,5.00200079,224.91,224.9,1e-08]
[1758523613728,0.55577786,224.91,224.9,1e-08]
[1758523613931,6.04381133,225.08,224.99,3.21346914]
[1758523614135,0.33302294,225.07,224.99,3.21346914]
[1758523614441,31.2,225.05,224.99,3.21346914]
[1758523614752,0.33302294,225.04,224.99,3.21346914]
[1758523614954,31.2,225.05,224.99,3.87346914]
[1758523615148,31.53302294,225.05,224.99,3.87346914]
[1758523616656,38.25683427,225.05,224.99,3.21346914]
[1758523616849,31.2,224.98,224.95,3.21346914]
[1758523617054,4.44503711,224.97,224.95,3.21346914]
[1758523617351,4.44503711,224.97,224.95,3.90346914]
[1758523618550,4.44474929,224.99,224.96,0.69]
[1758523619054,4.77647994,225.05,224.99,3.21346914]
[1758523619254,0.33302294,225.14,225.04,3.21346914]
[1758523619469,0.33302294,225.15,225.08,3.21346914]
[1758523619755,15.87683427,225.17,225.09,37.95]
[1758523619948,31.2,225.14,225.09,37.95]
[1758523621766,31.2,225.19,225.17,3.21346914]
[1758523622444,6.04381133,225.18,225.17,3.21346914]
[1758523622648,38.25683427,225.18,225.13,3.21346914]
[1758523622957,6.04381133,225.14,225.1,3.21346914]
[1758523623251,10.48608399,225.11,225.1,3.21346914]
[1758523624557,10.48608399,225.11,225.1,3.90346914]
[1758523626544,10.48608399,225.11,225.1,3.21346914]
[1758523626749,31.2,225.08,225.05,3.21346914]
[1758523626954,6.04381133,225.06,225.05,3.21346914]
[1758523627350,10.4870709,225.06,225.05,3.21346914]
[1758523628075,31.2,225.08,225.05,3.21346914]
[1758523628239,31.2,225.08,225.07,3.21346914]
[1758523628963,0.33302294,225.14,225.07,3.90346914]
[1758523629148,0.33302294,225.14,225.12,3.21346914]
[1758523629344,6.04381133,225.13,225.12,3.21346914]
[1758523629542,22.27038441,225.13,225.1,3.21346914]
[1758523629752,6.04381133,225.11,225.1,3.21346914]